bitfinex/quotes_BTCUSD_20241128
["timestamp","ask_amount","ask_price","bid_price","bid_amount"]
[1732805740461,0.35734621,95692.0,95689.0,0.0017254]
[1732805740648,0.1130945,95692.0,95689.0,0.0017254]
[1732805741537,0.104504,95690.0,95689.0,4e-07]
[1732805741776,0.38034921,95690.0,95689.0,4e-07]
[1732805741997,0.38890646,95690.0,95689.0,4e-07]
[1732805742433,0.39890646,95690.0,95689.0,4e-07]
[1732805742876,0.40290646,95690.0,95689.0,4e-07]
[1732805743093,0.41191844,95690.0,95689.0,4e-07]
[1732805744551,0.41691844,95690.0,95689.0,4e-07]
[1732805744779,0.41191844,95690.0,95689.0,4e-07]
[1732805745006,0.41491844,95690.0,95689.0,4e-07]
[1732805745248,0.5177499,95690.0,95689.0,4e-07]
[1732805745495,0.43491844,95690.0,95689.0,4e-07]
[1732805746377,0.42991844,95690.0,95689.0,4e-07]
[1732805746587,0.43191844,95690.0,95689.0,4e-07]
[1732805748384,0.43591844,95690.0,95689.0,4e-07]
[1732805750418,0.41591844,95690.0,95689.0,4e-07]
[1732805750899,0.37190646,95690.0,95689.0,4e-07]
[1732805751837,0.37363286,95690.0,95689.0,4e-07]
[1732805752075,0.37163286,95690.0,95689.0,4e-07]
[1732805752279,0.36863286,95690.0,95689.0,4e-07]
[1732805753837,0.37063286,95690.0,95689.0,4e-07]
[1732805754505,0.47247548,95690.0,95689.0,4e-07]
[1732805754728,0.39363286,95690.0,95689.0,4e-07]
[1732805755205,0.47233286,95690.0,95689.0,4e-07]
[1732805756133,0.51773286,95690.0,95689.0,4e-07]
[1732805759506,0.52773286,95690.0,95689.0,4e-07]
[1732805759729,0.64056432,95690.0,95689.0,4e-07]
[1732805760657,0.63056432,95690.0,95689.0,4e-07]
[1732805760878,0.52773286,95690.0,95689.0,4e-07]
[1732805761105,0.53773286,95690.0,95689.0,4e-07]
[1732805761318,0.52773286,95690.0,95689.0,4e-07]
[1732805761730,0.53773286,95690.0,95689.0,4e-07]
[1732805762209,0.64056432,95690.0,95689.0,4e-07]
[1732805762880,1.07973286,95690.0,95689.0,4e-07]
[1732805764278,1.08391786,95690.0,95689.0,4e-07]
[1732805768190,1.09482433,95690.0,95689.0,4e-07]
[1732805769102,1.08482433,95690.0,95689.0,4e-07]
[1732805769317,1.07482433,95690.0,95689.0,4e-07]
[1732805769809,0.94653933,95690.0,95689.0,4e-07]
[1732805770470,0.40453933,95690.0,95689.0,4e-07]
[1732805772524,0.23153933,95690.0,95689.0,4e-07]
[1732805772742,0.12869412,95690.0,95689.0,4e-07]
[1732805772979,0.11778765,95690.0,95689.0,4e-07]
[1732805773433,0.11778765,95690.0,95689.0,0.0823004]
[1732805773652,0.11778765,95690.0,95689.0,0.09053044]
[1732805773885,0.11778765,95690.0,95689.0,0.08883721]
[1732805774550,0.11678765,95690.0,95689.0,0.08883721]
[1732805774814,0.11678765,95690.0,95689.0,0.13573721]
[1732805775020,0.11678765,95690.0,95689.0,0.13673721]
[1732805775263,0.11678765,95690.0,95689.0,0.17132015]
[1732805775530,0.01228365,95690.0,95689.0,0.17032015]
[1732805775742,0.11478765,95690.0,95689.0,0.14619523]
[1732805776203,0.11478765,95690.0,95689.0,0.14819523]
[1732805776435,0.11478765,95690.0,95689.0,0.2293852]
[1732805776681,0.11478765,95690.0,95689.0,0.13573721]
[1732805776912,0.11578765,95690.0,95689.0,0.14173721]
[1732805777400,0.11578765,95690.0,95689.0,0.1342004]
[1732805777592,0.11478765,95690.0,95689.0,0.13573642]
[1732805777857,0.11478765,95690.0,95689.0,0.13873642]
[1732805778090,0.11478765,95690.0,95689.0,0.17384764]
[1732805778320,0.11478765,95690.0,95689.0,0.26752494]
[1732805778550,0.11478765,95690.0,95689.0,0.13873642]
[1732805778768,0.11478765,95690.0,95689.0,0.1322004]
[1732805778989,0.11478765,95690.0,95689.0,0.1372004]
[1732805778990,0.11578765,95690.0,95689.0,0.1372004]
[1732805779234,0.11578765,95690.0,95689.0,0.13873621]
[1732805779235,0.11478765,95690.0,95689.0,0.13873621]
[1732805779454,0.01028365,95690.0,95689.0,0.48451777]
[1732805779668,0.01128365,95690.0,95689.0,0.6767397]
[1732805779900,0.0027264,95690.0,95689.0,0.77303535]
[1732805780117,0.0027264,95690.0,95689.0,0.79316363]
[1732805781185,0.0027264,95690.0,95689.0,0.79016363]
[1732805781605,0.0027264,95690.0,95689.0,0.79416363]
[1732805782317,0.0027264,95690.0,95689.0,0.92374832]
[1732805782531,0.1072304,95690.0,95689.0,0.87693417]
[1732805782744,0.1072304,95690.0,95689.0,0.6662575]
[1732805782745,0.1062304,95690.0,95689.0,0.6662575]
[1732805782970,0.00938289,95690.0,95689.0,0.6193661]
[1732805783192,0.0027264,95690.0,95689.0,0.69324527]
[1732805783418,0.0027264,95690.0,95689.0,0.88052081]
[1732805783634,0.0027264,95690.0,95689.0,0.79607673]
[1732805784073,0.0027264,95690.0,95689.0,0.80607673]
[1732805784305,0.0027264,95690.0,95689.0,0.81261203]
[1732805784524,0.0017262,95700.0,95699.0,0.230294]
[1732805784762,0.20894,95721.0,95699.0,0.63559362]
[1732805785021,0.20894,95721.0,95697.0,0.4430054]
[1732805785022,0.20894,95721.0,95711.0,0.0796]
[1732805785231,0.20894,95721.0,95711.0,0.18244521]
[1732805785232,0.10448,95712.0,95711.0,0.18244521]
[1732805785679,0.11106704,95712.0,95711.0,0.18244521]
[1732805786166,0.11106704,95712.0,95711.0,0.0796]
[1732805786416,0.11106704,95712.0,95711.0,0.10153996]
[1732805786644,0.11106704,95712.0,95711.0,0.0796]
[1732805786873,0.11106704,95712.0,95711.0,0.0846]
[1732805787078,0.11106704,95712.0,95711.0,0.005]
[1732805787546,0.11106704,95712.0,95711.0,0.007]
[1732805788191,0.11106704,95712.0,95711.0,0.005]
[1732805788685,0.11279184,95712.0,95711.0,0.005]
[1732805788896,0.11279184,95712.0,95711.0,0.0823]
[1732805789147,0.11279184,95712.0,95711.0,0.09521]
[1732805789347,0.00831184,95712.0,95711.0,0.09621]
[1732805789562,0.11279184,95712.0,95711.0,0.09521]
[1732805789997,0.11279184,95712.0,95711.0,0.10021]
[1732805789998,0.11179943,95712.0,95711.0,0.10021]
[1732805790253,0.11179943,95712.0,95711.0,0.09521]
[1732805790464,0.11179943,95712.0,95711.0,0.10021]
[1732805790926,0.11179943,95712.0,95711.0,0.10321]
[1732805792527,0.11179943,95712.0,95711.0,0.008]
[1732805793408,0.104489,95703.0,95702.0,0.0751]
[1732805794075,0.11008363,95703.0,95702.0,0.0751]
[1732805794342,0.11008363,95703.0,95689.0,4e-07]
[1732805794343,0.208984,95701.0,95694.0,0.0782]
[1732805794624,0.104498,95695.0,95694.0,0.0782]
[1732805794810,0.208986,95700.0,95694.0,0.09066004]
[1732805794811,0.00562425,95700.0,95694.0,0.09066004]
[1732805795068,0.00563129,95695.0,95694.0,0.09066004]
[1732805795289,0.104495,95698.0,95694.0,0.09066004]
[1732805795538,0.0017248,95712.0,95694.0,0.09066004]
[1732805795758,0.104498,95695.0,95694.0,0.09066004]
[1732805796185,0.11012929,95695.0,95694.0,0.09066004]
[1732805796607,0.11012929,95695.0,95694.0,0.09866004]
[1732805796844,0.11012929,95695.0,95694.0,0.01246004]
[1732805797328,0.00663129,95695.0,95694.0,0.02346004]
[1732805797581,0.00563129,95695.0,95694.0,0.12095904]
[1732805797804,0.001,95695.0,95694.0,0.12295904]
[1732805798021,0.00663129,95695.0,95694.0,0.01846004]
[1732805798255,0.001,95695.0,95694.0,0.02046004]
[1732805798483,0.00663129,95695.0,95694.0,0.02046004]
[1732805798698,0.105498,95695.0,95694.0,0.02046004]
[1732805798911,0.11112929,95695.0,95694.0,0.02046004]
[1732805799123,0.11012929,95695.0,95694.0,0.01446004]
[1732805799352,0.00563129,95695.0,95694.0,0.01446004]
[1732805799811,0.00563129,95695.0,95694.0,0.01732224]
[1732805800023,0.104498,95695.0,95694.0,0.01732224]
[1732805800275,0.11012929,95695.0,95694.0,0.01332224]
[1732805800480,0.11112929,95695.0,95694.0,0.02232224]
[1732805800712,0.00663129,95695.0,95694.0,0.02732224]
[1732805801162,0.001,95695.0,95694.0,0.02732224]
[1732805801409,0.11112929,95695.0,95694.0,0.02732224]
[1732805802295,0.10612929,95695.0,95694.0,0.02732224]
[1732805802741,0.10612929,95695.0,95694.0,0.01832224]
[1732805802948,0.10612929,95695.0,95694.0,0.01332224]
[1732805803168,0.10712929,95695.0,95694.0,0.02032224]
[1732805803400,0.10712929,95695.0,95694.0,0.02432224]
[1732805805015,0.00663129,95695.0,95694.0,0.02432224]
[1732805805507,0.001,95695.0,95694.0,0.12716745]
[1732805805732,0.00656397,95695.0,95694.0,0.23166645]
[1732805805940,0.001,95695.0,95694.0,0.23166645]
[1732805806582,0.001,95695.0,95694.0,0.12716745]
[1732805806840,0.001,95695.0,95694.0,0.23166645]
[1732805808031,0.001,95695.0,95694.0,0.23820154]
[1732805809011,0.001,95695.0,95694.0,0.31440154]
[1732805809252,0.001,95695.0,95694.0,0.36410154]
[1732805809487,0.2106858,95712.0,95694.0,0.79139553]
[1732805809729,0.0017248,95712.0,95697.0,0.09347626]
[1732805809959,0.0017248,95712.0,95698.0,0.1093803]
[1732805810189,0.00470128,95711.0,95699.0,0.0065346]
[1732805810405,0.104492,95701.0,95700.0,0.10937981]
[1732805810627,0.104492,95701.0,95700.0,0.19972343]
[1732805811075,0.10919328,95701.0,95700.0,0.19972343]
[1732805811733,0.104492,95701.0,95700.0,0.19972343]
[1732805811950,0.10919328,95701.0,95700.0,0.19972343]
[1732805812162,0.104492,95701.0,95700.0,0.19972343]
[1732805812404,0.104491,95702.0,95700.0,0.19972343]
[1732805812639,0.104486,95707.0,95702.0,0.10449]
[1732805812910,0.104484,95709.0,95703.0,0.0065346]
[1732805813123,0.208966,95709.0,95704.0,0.0065346]
[1732805813345,0.208966,95709.0,95705.0,0.0065346]
[1732805813346,0.104483,95709.0,95705.0,0.0065346]
[1732805813576,0.104483,95709.0,95701.0,0.19072258]
[1732805813804,0.104483,95709.0,95703.0,0.0935421]
[1732805814031,0.104483,95709.0,95704.0,0.20292182]
[1732805814280,0.104483,95709.0,95706.0,0.0935421]
[1732805814500,0.104483,95709.0,95707.0,0.00653451]
[1732805814727,0.104483,95709.0,95708.0,0.00653451]
[1732805815205,0.104483,95709.0,95708.0,0.03853955]
[1732805815671,0.104483,95709.0,95708.0,0.00653451]
[1732805815877,0.10921666,95709.0,95708.0,0.00653451]
[1732805817250,0.10921666,95709.0,95708.0,0.1001769]
[1732805817476,0.10921666,95709.0,95708.0,0.1469981]
[1732805817667,0.10921666,95709.0,95708.0,0.1519981]
[1732805817902,0.10921666,95709.0,95708.0,0.21133699]
[1732805818110,0.10921666,95709.0,95708.0,0.0658734]
[1732805818325,0.10921666,95709.0,95708.0,0.60543392]
[1732805818769,0.10921666,95709.0,95708.0,0.21258462]
[1732805819042,0.10921666,95709.0,95708.0,0.14871122]
[1732805819277,0.10921666,95709.0,95708.0,0.006]
[1732805819757,0.10921666,95709.0,95708.0,0.003]
[1732805819972,0.10321666,95709.0,95708.0,0.008]
[1732805820194,0.10321666,95709.0,95708.0,0.005]
[1732805820412,0.10321666,95709.0,95708.0,0.10085401]
[1732805820633,0.10321666,95709.0,95708.0,0.007]
[1732805820915,0.104484,95708.0,95707.0,0.09385401]
[1732805821124,0.104486,95706.0,95705.0,0.09388938]
[1732805821375,0.104486,95706.0,95705.0,0.06572257]
[1732805821622,0.104486,95706.0,95705.0,0.15961195]
[1732805821855,0.10924168,95706.0,95705.0,0.09388938]
[1732805822080,0.10924168,95706.0,95702.0,0.14083407]
[1732805822081,0.104489,95703.0,95702.0,0.09388938]
[1732805822315,0.00475568,95706.0,95702.0,0.09389974]
[1732805822551,0.104491,95702.0,95701.0,0.09389974]
[1732805822766,0.104493,95700.0,95699.0,0.14083407]
[1732805822989,0.0017246,95710.0,95699.0,0.14083407]
[1732805822990,0.208983,95702.0,95699.0,0.54095138]
[1732805823211,0.104491,95702.0,95701.0,0.187791]
[1732805823427,0.104491,95702.0,95701.0,0.35315383]
[1732805823642,0.104491,95702.0,95701.0,0.54097093]
[1732805823870,0.104491,95702.0,95701.0,0.54297093]
[1732805824064,0.104491,95702.0,95701.0,0.62646857]
[1732805824992,0.104491,95702.0,95701.0,0.63046857]
[1732805825232,0.104491,95702.0,95701.0,0.63057454]
[1732805825447,0.104491,95702.0,95701.0,0.5470769]
[1732805825704,0.104491,95702.0,95701.0,0.5450769]
[1732805825939,0.104491,95702.0,95701.0,0.53854161]
[1732805826192,0.104491,95702.0,95701.0,0.54054161]
[1732805826405,0.104491,95702.0,95701.0,0.6141622]
[1732805826654,0.104491,95702.0,95701.0,0.6191622]
[1732805826886,0.0017244,95709.0,95705.0,0.104486]
[1732805827136,0.0017244,95709.0,95707.0,0.14089619]
[1732805827379,0.0017244,95709.0,95706.0,0.43634696]
[1732805827380,0.1062074,95709.0,95708.0,0.14743192]
[1732805827621,0.1062074,95709.0,95708.0,0.35327357]
[1732805829309,0.1062074,95709.0,95708.0,0.5411321]
[1732805829571,0.1062074,95709.0,95705.0,0.001]
[1732805829572,0.0017244,95709.0,95707.0,0.09393564]
[1732805829785,0.0017244,95709.0,95705.0,0.002]
[1732805829786,0.104486,95706.0,95705.0,0.002]
[1732805830297,0.104486,95706.0,95705.0,0.001]
[1732805830504,0.104486,95706.0,95695.0,0.23482698]
[1732805830505,0.104491,95702.0,95701.0,0.09393564]
[1732805831040,0.104491,95702.0,95694.0,0.23568918]
[1732805831041,0.208968,95708.0,95700.0,0.09394032]
[1732805831254,0.09370224,95709.0,95703.0,0.09393752]
[1732805831255,0.104488,95704.0,95703.0,0.09393752]
[1732805831471,0.104488,95704.0,95703.0,0.10047764]
[1732805831735,0.104488,95704.0,95703.0,0.35330375]
[1732805832199,0.104488,95704.0,95702.0,0.07303847]
[1732805832200,0.01,95703.0,95702.0,0.07303847]
[1732805832417,0.01,95703.0,95699.0,0.14090621]
[1732805832418,0.01,95674.0,95672.0,0.23482698]
[1732805832648,0.232049,95671.0,95636.0,0.23482698]
[1732805832954,0.232049,95671.0,95618.0,0.01]
[1732805832955,0.264545,95652.0,95651.0,1e-06]
[1732805833166,0.264545,95652.0,95612.0,0.3282625]
[1732805833167,0.254564,95635.0,95615.0,0.23482698]
[1732805833417,0.254564,95635.0,95595.0,0.48581028]
[1732805833418,0.264578,95622.0,95621.0,7e-07]
[1732805833639,0.114592,95609.0,95605.0,0.0008622]
[1732805833865,0.114592,95609.0,95568.0,0.0489]
[1732805833866,0.264598,95604.0,95603.0,7e-07]
[1732805834118,0.264611,95592.0,95591.0,1e-06]
[1732805834328,0.264611,95592.0,95546.0,0.0489]
[1732805834329,0.26463,95574.0,95546.0,0.0489]
[1732805834556,0.26463,95574.0,95573.0,1e-06]
[1732805834557,0.39047521,95574.0,95573.0,1e-06]
[1732805834780,0.35747521,95574.0,95573.0,1e-06]
[1732805835701,0.39047521,95574.0,95573.0,1e-06]
[1732805836382,0.137633,95572.0,95546.0,0.0489]
[1732805836609,0.36747821,95572.0,95546.0,0.0489]
[1732805837110,0.35747821,95572.0,95546.0,0.0489]
[1732805837315,0.36747821,95572.0,95546.0,0.0489]
[1732805838027,0.36747821,95572.0,95571.0,0.0014]
[1732805838277,0.37047821,95572.0,95571.0,0.0014]
[1732805838513,0.37047821,95572.0,95571.0,1e-06]
[1732805838746,0.36047821,95572.0,95571.0,1e-06]
[1732805838999,0.37047821,95572.0,95571.0,1e-06]
[1732805839941,0.36047821,95572.0,95571.0,1e-06]
[1732805840150,0.37047821,95572.0,95571.0,1e-06]
[1732805840360,0.39347821,95572.0,95571.0,1e-06]
[1732805841056,0.37047821,95572.0,95571.0,1e-06]
[1732805842385,0.39347821,95572.0,95571.0,1e-06]
[1732805843038,0.72224238,95572.0,95571.0,1e-06]
[1732805843258,0.254655,95552.0,95535.0,0.0145657]
[1732805843505,0.35750021,95552.0,95535.0,0.0145657]
[1732805845215,0.39134396,95552.0,95535.0,0.0145657]
[1732805846302,0.36834396,95552.0,95535.0,0.0145657]
[1732805847593,0.11549875,95552.0,95535.0,0.0145657]
[1732805848968,0.26549875,95552.0,95535.0,0.0145657]
[1732805849182,0.26549875,95552.0,95551.0,0.0012634]
[1732805852729,0.104655,95552.0,95551.0,0.0012634]
[1732805852965,0.104655,95552.0,95551.0,0.0481634]
[1732805854082,1.104655,95552.0,95551.0,0.0481634]
[1732805854301,1.104655,95552.0,95551.0,0.0491634]
[1732805854506,1.38048646,95552.0,95551.0,0.0012634]
[1732805854716,1.38050021,95552.0,95551.0,0.0012634]
[1732805855364,1.39139829,95552.0,95551.0,0.0012634]
[1732805860656,1.40139829,95552.0,95551.0,4e-07]
[1732805861742,1.41139829,95552.0,95551.0,4e-07]
[1732805861964,1.95639829,95552.0,95551.0,4e-07]
[1732805862638,1.41439829,95552.0,95551.0,4e-07]
[1732805862899,1.37139829,95552.0,95551.0,4e-07]
[1732805863164,1.37139829,95552.0,95551.0,0.00654795]
[1732805863165,1.22139829,95552.0,95551.0,0.00654795]
[1732805863372,1.21839829,95552.0,95551.0,0.01702382]
[1732805863584,1.22239829,95552.0,95551.0,0.01802382]
[1732805864051,1.21839829,95552.0,95551.0,0.01702382]
[1732805864267,1.22139829,95552.0,95551.0,0.02486288]
[1732805864507,1.11855308,95552.0,95551.0,0.02486288]
[1732805864758,1.11855308,95552.0,95551.0,0.14766288]
[1732805864759,1.003,95552.0,95551.0,0.14766288]
[1732805864993,1.006,95552.0,95551.0,0.17289507]
[1732805865201,0.95886812,95552.0,95551.0,0.17289507]
[1732805865422,0.95886812,95552.0,95551.0,0.1925316]
[1732805865641,0.95886812,95552.0,95551.0,0.2971876]
[1732805865863,0.89341436,95552.0,95551.0,0.3001876]
[1732805866298,0.89341436,95552.0,95551.0,0.38339628]
[1732805866299,0.76531436,95552.0,95551.0,0.38339628]
[1732805866519,0.00941436,95552.0,95551.0,0.38339628]
[1732805866779,0.00941436,95552.0,95551.0,0.39039628]
[1732805866984,0.00941436,95552.0,95551.0,0.38339628]
[1732805867400,0.00941436,95552.0,95551.0,0.38739628]
[1732805867867,0.00941436,95552.0,95551.0,0.39139628]
[1732805868286,0.00941436,95552.0,95551.0,0.38039628]
[1732805868750,0.00941436,95552.0,95551.0,0.38639628]
[1732805869227,0.00941436,95552.0,95551.0,0.39639628]
[1732805869449,0.023,95570.0,95569.0,0.104635]
[1732805869662,0.023,95570.0,95569.0,0.01701407]
[1732805869873,0.127635,95570.0,95569.0,0.02485313]
[1732805870920,0.127635,95570.0,95569.0,0.02785313]
[1732805871360,0.127635,95570.0,95569.0,0.01738293]
[1732805872274,0.127635,95570.0,95569.0,0.00954387]
[1732805872950,0.127635,95570.0,95569.0,0.00954487]
[1732805873186,0.127635,95570.0,95569.0,0.02096366]
[1732805873395,0.127635,95570.0,95569.0,0.02001603]
[1732805873808,0.127635,95570.0,95569.0,0.00954487]
[1732805874289,0.127635,95570.0,95569.0,0.02001607]
[1732805875168,0.127635,95570.0,95569.0,0.00954487]
[1732805875689,0.127635,95570.0,95569.0,0.0200163]
[1732805875907,0.277635,95570.0,95569.0,0.00954487]
[1732805876331,0.277635,95570.0,95569.0,0.003]
[1732805876744,0.277635,95570.0,95569.0,0.001]
[1732805876957,0.104655,95552.0,95551.0,0.1228004]
[1732805877169,0.127655,95552.0,95551.0,0.14943762]
[1732805877867,0.127655,95552.0,95551.0,0.01435758]
[1732805878141,0.277655,95552.0,95551.0,0.00654595]
[1732805878382,0.2890129,95552.0,95551.0,4e-07]
[1732805878606,0.2840129,95552.0,95551.0,4e-07]
[1732805879090,0.2840129,95552.0,95551.0,0.0040004]
[1732805879346,0.2840129,95552.0,95551.0,0.0120004]
[1732805879347,0.38685811,95552.0,95551.0,0.0120004]
[1732805879773,0.38685811,95552.0,95551.0,0.0040004]
[1732805879981,0.38785811,95552.0,95551.0,0.0040004]
[1732805880409,0.38685811,95552.0,95551.0,4e-07]
[1732805880622,0.38785811,95552.0,95551.0,4e-07]
[1732805880851,0.38785811,95552.0,95551.0,0.0010004]
[1732805880852,0.39385811,95552.0,95551.0,0.0010004]
[1732805881067,0.38785811,95552.0,95551.0,4e-07]
[1732805881285,0.272655,95552.0,95551.0,4e-07]
[1732805882020,0.274655,95552.0,95551.0,4e-07]
[1732805882457,0.38350021,95552.0,95551.0,0.0010004]
[1732805882979,0.38350021,95552.0,95551.0,4e-07]
[1732805882980,0.37750021,95552.0,95551.0,4e-07]
[1732805883174,0.38150021,95552.0,95551.0,4e-07]
[1732805883395,0.37750021,95552.0,95551.0,4e-07]
[1732805883612,0.37550021,95552.0,95551.0,4e-07]
[1732805883829,0.38250021,95552.0,95551.0,0.0010004]
[1732805884053,0.38250021,95552.0,95551.0,4e-07]
[1732805884280,0.38422741,95552.0,95551.0,4e-07]
[1732805884528,0.38722741,95552.0,95551.0,4e-07]
[1732805884753,0.38822741,95552.0,95551.0,4e-07]
[1732805885455,0.2843822,95552.0,95551.0,4e-07]
[1732805885674,0.2753822,95552.0,95551.0,4e-07]
[1732805886099,0.2803822,95552.0,95551.0,4e-07]
[1732805886735,0.2843822,95552.0,95551.0,4e-07]
[1732805886950,0.2833822,95552.0,95551.0,4e-07]
[1732805887161,0.2743822,95552.0,95551.0,4e-07]
[1732805887371,0.2783822,95552.0,95551.0,4e-07]
[1732805887816,0.2773822,95552.0,95551.0,4e-07]
[1732805888037,0.2783822,95552.0,95551.0,4e-07]
[1732805888707,0.2773822,95552.0,95551.0,4e-07]
[1732805888934,0.2753822,95552.0,95551.0,4e-07]
[1732805889148,0.2783822,95552.0,95551.0,4e-07]
[1732805889887,0.2803822,95552.0,95551.0,4e-07]
[1732805890376,0.2793822,95552.0,95551.0,4e-07]
[1732805890851,0.37722741,95552.0,95551.0,4e-07]
[1732805891068,0.37822741,95552.0,95551.0,4e-07]
[1732805891929,0.37722741,95552.0,95551.0,4e-07]
[1732805892356,0.37822741,95552.0,95551.0,4e-07]
[1732805893645,0.37722741,95552.0,95551.0,4e-07]
[1732805894088,0.38022741,95552.0,95551.0,4e-07]
[1732805894292,0.2773822,95552.0,95551.0,4e-07]
[1732805894546,0.2753822,95552.0,95551.0,4e-07]
[1732805894777,0.2773822,95552.0,95551.0,4e-07]
[1732805894998,0.1273822,95552.0,95551.0,4e-07]
[1732805895206,0.1273822,95552.0,95551.0,0.05746044]
[1732805895448,0.1043822,95552.0,95551.0,0.05746044]
[1732805895880,0.0047272,95552.0,95551.0,0.05746044]
[1732805896105,0.1093822,95552.0,95551.0,0.05746044]
[1732805896565,0.0047272,95552.0,95551.0,0.05746044]
[1732805896773,0.0017272,95552.0,95551.0,0.05746044]
[1732805896985,0.1063822,95552.0,95551.0,0.05746044]
[1732805897194,0.1063822,95552.0,95551.0,0.0493004]
[1732805897564,0.1063822,95552.0,95551.0,4e-07]
[1732805897866,0.2563822,95552.0,95551.0,4e-07]
[1732805898110,0.2793822,95552.0,95551.0,0.0040004]
[1732805898598,0.2793822,95552.0,95551.0,0.0050004]
[1732805898852,0.2793822,95552.0,95551.0,0.0070004]
[1732805898853,0.39306945,95552.0,95551.0,0.0070004]
[1732805899076,0.39306945,95552.0,95551.0,0.0020004]
[1732805899290,0.39506945,95552.0,95551.0,0.0020004]
[1732805899504,0.39306945,95552.0,95551.0,0.0020004]
[1732805899721,0.39706945,95552.0,95551.0,0.0020004]
[1732805900382,0.39706945,95552.0,95551.0,4e-07]
[1732805900819,0.39906945,95552.0,95551.0,4e-07]
[1732805901054,0.39506945,95552.0,95551.0,4e-07]
[1732805901300,0.39306945,95552.0,95551.0,4e-07]
[1732805901514,0.40106945,95552.0,95551.0,0.0010004]
[1732805901733,0.40106945,95552.0,95551.0,4e-07]
[1732805901953,0.40506945,95552.0,95551.0,0.0010004]
[1732805902409,0.40706945,95552.0,95551.0,0.0010004]
[1732805904206,0.30422424,95552.0,95551.0,0.0010004]
[1732805905563,0.40706945,95552.0,95551.0,0.0010004]
[1732805912333,0.30422424,95552.0,95551.0,0.0010004]
[1732805913031,0.104664,95543.0,95542.0,0.0720004]
[1732805913246,0.104672,95536.0,95535.0,0.0145657]
[1732805916137,0.104672,95536.0,95535.0,0.0165657]
[1732805916576,0.104672,95536.0,95535.0,0.02620227]
[1732805917490,0.104672,95536.0,95535.0,0.02720227]
[1732805918845,0.104672,95536.0,95535.0,0.0175657]
[1732805919288,0.104672,95536.0,95535.0,0.018428]
[1732805920485,0.277672,95536.0,95535.0,0.018428]
[1732805920731,0.38051721,95536.0,95535.0,0.018428]
[1732805920941,0.38051721,95536.0,95535.0,0.015428]
[1732805922048,0.38551721,95536.0,95535.0,0.015428]
[1732805922275,0.38751721,95536.0,95535.0,0.015428]
[1732805924296,0.38547815,95536.0,95511.0,0.0004]
[1732805924535,0.277698,95512.0,95511.0,0.0004]
[1732805924767,0.38054321,95512.0,95511.0,0.0004]
[1732805925683,0.38054321,95512.0,95511.0,0.0014]
[1732805925902,0.38054321,95512.0,95511.0,0.0004]
[1732805926341,0.38354321,95512.0,95511.0,0.0004]
[1732805926578,0.39455013,95512.0,95511.0,0.0004]
[1732805927225,0.39555013,95512.0,95511.0,0.0004]
[1732805927661,0.39455013,95512.0,95511.0,0.0004]
[1732805927874,0.39655013,95512.0,95511.0,0.0004]
[1732805928592,0.40055013,95512.0,95511.0,0.0004]
[1732805929699,0.39755013,95512.0,95511.0,0.0004]
[1732805929900,0.39355013,95512.0,95511.0,0.0004]
[1732805930121,0.39155013,95512.0,95511.0,0.0004]
[1732805930332,0.39255013,95512.0,95511.0,0.0004]
[1732805930534,0.26670492,95512.0,95511.0,0.0004]
[1732805930944,0.26570492,95512.0,95511.0,0.0004]
[1732805931162,0.26970492,95512.0,95511.0,0.0004]
[1732805931393,0.27170492,95512.0,95511.0,0.0004]
[1732805931614,0.26770492,95512.0,95511.0,0.0012625]
[1732805931827,0.26570492,95512.0,95511.0,0.0012625]
[1732805932982,0.104698,95512.0,95511.0,0.0012625]
[1732805933207,0.104698,95512.0,95511.0,0.0829625]
[1732805933462,0.104698,95512.0,95511.0,0.09125875]
[1732805934281,0.104698,95512.0,95511.0,0.0829625]
[1732805934924,0.104698,95512.0,95511.0,0.0899625]
[1732805935568,0.104698,95512.0,95511.0,0.0879625]
[1732805936055,0.104698,95512.0,95511.0,0.0062625]
[1732805936262,0.104698,95512.0,95511.0,0.0012625]
[1732805937985,0.104698,95512.0,95511.0,0.0022625]
[1732805938217,0.104698,95512.0,95511.0,0.0012625]
[1732805939283,0.104698,95512.0,95511.0,0.0032625]
[1732805939689,0.104698,95512.0,95511.0,0.0012625]
[1732805940324,0.105698,95512.0,95511.0,0.0012625]
[1732805940712,0.104698,95512.0,95511.0,0.0012625]
[1732805941183,0.104698,95512.0,95511.0,0.0042625]
[1732805942330,0.15162973,95540.0,95511.0,0.0042625]
[1732805942331,0.209362,95529.0,95521.0,0.104688]
[1732805942567,0.02130632,95550.0,95523.0,0.0765]
[1732805942773,0.104681,95528.0,95523.0,0.0765]
[1732805942976,0.104681,95528.0,95523.0,0.181186]
[1732805943183,0.104681,95529.0,95523.0,0.181186]
[1732805943402,0.209347,95535.0,95523.0,0.0765]
[1732805943609,0.104681,95528.0,95524.0,0.05285]
[1732805943872,0.003725,95525.0,95524.0,0.05285]
[1732805944279,0.001725,95525.0,95524.0,0.05285]
[1732805944768,0.106409,95525.0,95524.0,0.05285]
[1732805946620,0.106409,95525.0,95524.0,0.0452]
[1732805950144,0.001725,95525.0,95524.0,0.0452]
[1732805950820,0.106409,95525.0,95524.0,0.0452]
[1732805951766,0.106409,95525.0,95524.0,0.005]
[1732805951978,0.23225421,95525.0,95524.0,0.005]
[1732805952647,0.38225421,95525.0,95524.0,0.005]
[1732805952875,0.38225421,95525.0,95524.0,0.014]
[1732805952876,0.39415219,95525.0,95524.0,0.014]
[1732805953092,0.39315219,95525.0,95524.0,0.005]
[1732805953566,0.104698,95512.0,95511.0,0.0012625]
[1732805954283,0.127698,95512.0,95511.0,0.0012625]
[1732805955397,0.127698,95512.0,95511.0,0.0032625]
[1732805955862,0.38054321,95512.0,95511.0,0.0032625]
[1732805956553,0.38054321,95512.0,95511.0,0.0012625]
[1732805957016,0.38154321,95512.0,95511.0,0.0012625]
[1732805957455,0.39153432,95512.0,95511.0,0.0012625]
[1732805957894,0.39253432,95512.0,95511.0,0.0012625]
[1732805958360,0.39153432,95512.0,95511.0,0.0012625]
[1732805958596,0.39153432,95512.0,95511.0,0.0042625]
[1732805958832,0.27772,95492.0,95491.0,0.0004]
[1732805959039,0.38056521,95492.0,95491.0,0.0004]
[1732805960189,0.25472,95492.0,95491.0,0.0004]
[1732805960420,0.10472,95492.0,95491.0,0.0842]
[1732805960631,0.10472,95492.0,95491.0,0.09945506]
[1732805960878,0.209439,95494.0,95491.0,0.09945506]
[1732805961120,0.15162973,95520.0,95491.0,0.09945506]
[1732805961332,0.10472,95492.0,95491.0,0.09945506]